fUST/lending_fUST_20250311
["ID","MTS","AMOUNT","RATE_DAILY","PERIOD"]
[355887710,1741680661009,-500.0,0.00042191,120]
[355887711,1741680661020,-500.0,0.00042191,120]
[355887712,1741680661030,-500.0,0.00042191,120]
[355887713,1741680661040,-500.0,0.00042191,120]
[355887714,1741680661050,-734.22,0.00042191,120]
[355887715,1741680661060,-1862.9,0.00042191,120]
[355887716,1741680661070,-480.35390617,0.00042191,120]
[355887717,1741680661187,-19.64609383,0.00042191,120]
[355887718,1741680661197,-393.90072279,0.00042191,120]
[355887723,1741680695417,1751.91487,0.00036349,2]
[355887724,1741680701483,156.29175,0.00036192,5]
[355887727,1741680740109,500.0,0.00029,30]
[355887728,1741680740536,500.0,0.00029,30]
[355887729,1741680740926,500.0,0.00029,30]
[355887730,1741680741324,500.0,0.00028011,2]
[355887731,1741680741684,500.0,0.00028011,2]
[355887732,1741680742246,772.92946154,0.00028011,2]
[355887752,1741681402231,-164.503393,0.000258,2]
[355887753,1741681425212,190.0,0.00026,3]
[355887754,1741681457544,190.0,0.00026,3]
[355887755,1741681553128,-135.906607,0.000258,2]
[355887756,1741681553150,-78.59354699,0.000258,2]
[355887758,1741681654133,-121.40645301,0.000258,2]
[355887759,1741681654161,-230.2155583,0.00035599,2]
[355887760,1741681654187,-161.410392,0.00035604,120]
[355887761,1741681654215,-358.736174,0.0003589,2]
[355887762,1741681654244,-1840.0116392,0.000359,7]
[355887763,1741681654272,-190.0,0.00036,2]
[355887764,1741681654314,-190.0,0.00036,3]
[355887765,1741681654338,-190.0,0.00036,7]
[355887766,1741681654362,-400.0,0.0003684,2]
[355887767,1741681654622,-2289.076521,0.00036841,2]
[355887773,1741681721774,3000.0,0.00026,30]
[355887774,1741681724616,18567.57466998,0.0001,7]
[355887775,1741681724643,18021.72302212,0.0001,7]
[355887780,1741681745109,-253.67419502,0.0003,60]
[355887781,1741681745130,-2944.07786849,0.00031,120]
[355887782,1741681745149,-200.0,0.00035,7]
[355887784,1741681757126,-190.0,0.00036,15]
[355887785,1741681757152,-165.0,0.00036,15]
[355887786,1741681757176,-152.82610872,0.00036608,10]
[355887787,1741681757199,-600.0,0.000367,7]
[355887788,1741681757223,-400.0,0.0003684,2]
[355887789,1741681757246,-22610.923479,0.00036841,2]
[355887790,1741681757269,-1778.67791799,0.000369,7]
[355887792,1741681768896,165.0,0.00036,60]
[355887793,1741681771085,-169.41502415,0.00038,2]
[355887794,1741681777721,787.49196367,0.00034741,2]
[355887796,1741681810112,163.0,0.000347,2]
[355887858,1741681832750,-443.48392308,0.00038856,113]
[355887859,1741681832759,-1884.11745424,0.000389,2]
[355887860,1741681832768,-288.91714988,0.00038933,10]
[355887861,1741681832777,-179.47950942,0.00038956,21]
[355887862,1741681832786,-178.75080625,0.00039,44]
[355887863,1741681832795,-155.417131,0.00039232,30]
[355887864,1741681832805,-161.1397081,0.00039256,2]
[355887865,1741681832849,-1066.07170072,0.00039256,2]
[355887866,1741681832859,-160.0,0.00039283,3]
[355887867,1741681832868,-5153.37166142,0.00039489,2]
[355887868,1741681832878,-16707.38076221,0.000395,4]
[355887874,1741681838025,-172983.51779779,0.000395,4]
[355887875,1741681838035,-15572.92107546,0.00039569,3]
[355887876,1741681838044,-160.0,0.00039569,3]
[355887877,1741681838053,-593.19557246,0.00039573,2]
[355887878,1741681838063,-478.88073897,0.00039573,5]
[355887879,1741681838072,-500.0,0.00039573,5]
[355887880,1741681838082,-500.0,0.00039573,5]
[355887881,1741681838091,-500.29210561,0.00039573,5]
[355887882,1741681838100,-500.0,0.00039573,5]
[355887883,1741681838110,-500.0,0.00039573,5]
[355887884,1741681838121,-500.0,0.00039573,2]
[355887885,1741681838133,-500.0,0.00039573,5]
[355887886,1741681838142,-500.0,0.00039573,5]
[355887887,1741681838152,-500.0,0.00039573,5]
[355887888,1741681838161,-500.0,0.00039573,5]
[355887889,1741681838173,-500.0,0.00039573,5]
[355887890,1741681838182,-500.0,0.00039573,5]
[355887891,1741681838194,-500.0,0.00039573,5]
[355887892,1741681838204,-500.0,0.00039573,5]
[355887893,1741681838213,-151.0,0.00039575,2]
[355887894,1741681838223,-1000.0,0.00039575,2]
[355887895,1741681838232,-600.0,0.00039575,2]
[355887896,1741681838241,-708.24066873,0.00039578,2]
[355887897,1741681838250,-524.85232731,0.00039578,15]
[355887898,1741681838260,-347.44136923,0.00039578,15]
[355887899,1741681838270,-9510.26,0.00039579,3]
[355887900,1741681838279,-4755.13,0.00039579,3]
[355887901,1741681838289,-2377.56,0.00039579,3]
[355887902,1741681838298,-1188.78,0.00039579,3]
[355887903,1741681838307,-594.39,0.00039579,3]
[355887904,1741681838316,-297.2,0.00039579,3]
[355887905,1741681838326,-891.61,0.00039579,3]
[355887906,1741681838335,-102901.27698382,0.00039585,2]
[355887907,1741681838344,-148360.36367,0.00039589,3]
[355887908,1741681838354,-416.66666667,0.00039589,3]
[355887909,1741681838365,-160.0,0.00039589,3]
[355887910,1741681838375,-174981.54520926,0.00039599,2]
[355887911,1741681838384,-468.17,0.000396,30]
[355887912,1741681838393,-151.0,0.000396,14]
[355887913,1741681838403,-622.2,0.0003963,2]
[355887914,1741681838412,-645.2214,0.00039685,2]
[355887915,1741681838422,-151.0,0.000397,12]
[355887916,1741681838431,-669.0945918,0.0003974,2]
[355887917,1741681838441,-787.49196367,0.00039741,2]
[355887918,1741681838450,-500.0,0.00039741,2]
[355887919,1741681838459,-1884.11745417,0.00039786,2]
[355887920,1741681838469,-693.8510917,0.00039795,2]
[355887921,1741681838479,-719.52358209,0.0003985,2]
[355887922,1741681838488,-5153.37166139,0.00039865,2]
[355887923,1741681838498,-151.0,0.000399,12]
[355887924,1741681838507,-746.14595463,0.00039905,2]
[355887925,1741681838516,-773.75335495,0.0003996,2]
[355887926,1741681838525,-500.0,0.00039998,120]
[355887927,1741681838535,-1601.34,0.0004,30]
[355887928,1741681838544,-809.81999491,0.0004,120]
[355887929,1741681838553,-151.0,0.0004,20]
[355887930,1741681838563,-1812.9243376,0.0004,15]
[355887931,1741681838572,-802.38222908,0.00040015,2]
[355887932,1741681838581,-832.07037156,0.0004007,2]
[355887933,1741681838590,-156.587,0.00040123,2]
[355887934,1741681838599,-862.8569753,0.00040125,2]
[355887935,1741681838609,-443.48392308,0.00040144,120]
[355887936,1741681838619,-200.0,0.00040165,2]
[355887937,1741681838628,-894.78268339,0.0004018,2]
[355887938,1741681838638,-151.0,0.000402,17]
[355887939,1741681838647,-5153.37166139,0.00040242,2]
[355887940,1741681838657,-151.0,0.000403,12]
[355887941,1741681838666,-160.0,0.0004045,4]
[355887942,1741681838676,-151.0,0.000405,11]
[355887943,1741681838685,-37090.0909175,0.0004054,3]
[355887944,1741681838694,-20000.0,0.0004055,8]
[355887945,1741681838703,-151.0,0.000406,20]
[355887946,1741681838713,-151.0,0.000406,16]
[355887947,1741681838723,-5153.37166139,0.00040618,2]
[355887948,1741681838732,-186.62806455,0.0004063,30]
[355887949,1741681838742,-162.380719,0.00040671,2]
[355887950,1741681838751,-1884.11745417,0.00040673,28]
[355887951,1741681838760,-20000.0,0.0004078,8]
[355887952,1741681838769,-258.94,0.00040794,2]
[355887953,1741681838779,-151.0,0.000408,11]
[355887954,1741681838789,-151.0,0.000408,17]
[355887955,1741681838798,-4000.0,0.000408,6]
[355887956,1741681838807,-186.62806455,0.00040822,30]
[355887957,1741681838816,-167.8448478,0.00040876,30]
[355887958,1741681838825,-1601.34,0.000409,30]
[355887959,1741681838835,-151.0,0.000409,18]
[355887960,1741681838844,-37090.0909175,0.00040929,3]
[355887961,1741681838853,-19020.52,0.00040949,3]
[355887962,1741681838862,-9510.26,0.00040949,3]
[355887963,1741681838872,-4755.12,0.00040949,3]
[355887964,1741681838881,-2377.56,0.00040949,3]
[355887965,1741681838890,-1188.78,0.00040949,3]
[355887966,1741681838899,-594.4,0.00040949,3]
[355887967,1741681838908,-500.0,0.0004098,2]
[355887968,1741681838918,-74180.1818351,0.0004098,3]
[355887969,1741681838927,-147432.75420302,0.0004099,8]
[355887970,1741681838936,-5153.37166139,0.00040994,2]
[355887971,1741681838946,-13486.70903206,0.00040995,2]
[355887972,1741681838955,-1000.0,0.00040995,66]
[355887973,1741681838964,-75126.26620187,0.00040997,2]
[355887974,1741681838974,-10179.65,0.00041,30]
[355887975,1741681838983,-538.27,0.00041,30]
[355887976,1741681838993,-416.66666667,0.00041,30]
[355887977,1741681839002,-341.0,0.00041,14]
[355887978,1741681839011,-1000.0,0.00041,3]
[355887979,1741681839021,-154.0,0.00041,14]
[355887980,1741681839030,-500.0,0.00041,2]
[355887981,1741681839040,-186.62806455,0.00041014,30]
[355887982,1741681839050,-500.0,0.00041073,5]
[355887983,1741681839059,-500.0,0.00041073,5]
[355887984,1741681839069,-500.0,0.00041073,5]
[355887985,1741681839078,-500.0,0.00041073,5]
[355887986,1741681839087,-500.0,0.00041073,5]
[355887987,1741681839096,-500.0,0.00041073,5]
[355887988,1741681839106,-500.0,0.00041073,5]
[355887989,1741681839116,-502.17573148,0.00041073,5]
[355887990,1741681839127,-500.0,0.00041073,5]
[355887991,1741681839137,-433.15651098,0.00041073,5]
[355887992,1741681839146,-500.0,0.00041073,5]
[355887993,1741681839155,-514.54064439,0.00041073,5]
[355887994,1741681839165,-403.31805025,0.00041073,5]
[355887995,1741681839175,-500.0,0.00041073,5]
[355887996,1741681839194,-500.0,0.00041073,5]
[355887997,1741681839207,-505.2304907,0.00041073,2]
[355887998,1741681839217,-500.0,0.00041073,5]
[355887999,1741681839228,-500.0,0.00041073,3]
[355888000,1741681839238,-500.0,0.00041073,5]
[355888001,1741681839248,-500.0,0.00041073,5]
[355888002,1741681839258,-502.44882077,0.00041073,5]
[355888003,1741681839268,-500.0,0.00041073,5]
[355888004,1741681839279,-500.0,0.00041073,5]
[355888005,1741681839289,-500.0,0.00041073,5]
[355888006,1741681839299,-500.0,0.00041073,5]
[355888007,1741681839309,-500.0,0.00041073,4]
[355888008,1741681839319,-164.21626571,0.00041073,5]
[355888009,1741681839329,-500.0,0.00041073,5]
[355888010,1741681839339,-500.0,0.00041073,5]
[355888011,1741681839349,-531.01255887,0.00041073,5]
[355888012,1741681839360,-501.87335429,0.00041073,5]
[355888013,1741681839370,-552.54480622,0.00041073,5]
[355888014,1741681839381,-506.17842797,0.00041073,5]
[355888015,1741681839391,-500.0,0.00041073,5]
[355888016,1741681839401,-500.0,0.00041073,5]
[355888017,1741681839412,-500.0,0.00041073,5]
[355888018,1741681839423,-500.0,0.00041073,5]
[355888019,1741681839435,-557.5181955,0.00041073,5]
[355888020,1741681839445,-500.0,0.00041073,5]
[355888021,1741681839456,-500.0,0.00041073,5]
[355888022,1741681839467,-500.0,0.00041073,5]
[355888023,1741681839481,-611.80319424,0.00041073,5]
[355888024,1741681839492,-500.0,0.00041073,5]
[355888025,1741681839502,-172.59258293,0.00041073,5]
[355888026,1741681839512,-500.0,0.00041073,5]
[355888028,1741681839522,-548.31680066,0.00041073,5]
[355888029,1741681839531,-502.36674168,0.00041073,5]
[355888030,1741681839541,-510.44411663,0.00041073,5]
[355888031,1741681839551,-500.0,0.00041073,5]
[355888032,1741681839560,-500.0,0.00041073,5]
[355888033,1741681839570,-500.0,0.00041073,5]
[355888035,1741681839580,-500.21248245,0.00041073,5]
[355888037,1741681839590,-500.0,0.00041073,5]
[355888039,1741681839600,-500.0,0.00041073,5]
[355888041,1741681839610,-500.0,0.00041073,5]
[355888043,1741681839620,-500.96112984,0.00041073,5]
[355888045,1741681839630,-500.0,0.00041073,5]
[355888047,1741681839640,-500.0,0.00041073,5]
[355888049,1741681839650,-500.0,0.00041073,5]
[355888052,1741681839660,-500.0,0.00041073,5]
[355888054,1741681839671,-1046.67435174,0.00041094,120]
[355888055,1741681839680,-680.0,0.00041094,120]
[355888056,1741681839690,-322.8,0.00041094,120]
[355888057,1741681839700,-151.0,0.00041095,14]
[355888059,1741681839709,-151.0,0.00041095,14]
[355888061,1741681839719,-354.438902,0.00041095,14]
[355888062,1741681839729,-354.438902,0.00041095,14]
[355888063,1741681839739,-151.0,0.00041095,14]
[355888064,1741681839750,-500.0,0.00041095,120]
[355888065,1741681839760,-500.0,0.00041095,120]
[355888066,1741681839770,-505.88099795,0.00041095,120]
[355888067,1741681839779,-500.0,0.00041095,120]
[355888068,1741681839791,-519.94548565,0.00041095,2]
[355888069,1741681839800,-500.0,0.00041095,120]
[355888070,1741681839810,-500.0,0.00041095,120]
[355888071,1741681839819,-828.05,0.00041095,120]
[355888072,1741681839830,-200.06401301,0.00041095,120]
[355888073,1741681839840,-500.0,0.00041095,120]
[355888074,1741681839849,-511.07757915,0.00041095,120]
[355888075,1741681839858,-500.0,0.00041095,120]
[355888076,1741681839869,-500.0,0.00041095,120]
[355888077,1741681839878,-511.34921401,0.00041095,120]
[355888078,1741681839888,-500.0,0.00041095,7]
[355888079,1741681839898,-500.0,0.00041095,120]
[355888080,1741681839908,-500.0,0.00041095,120]
[355888081,1741681839917,-500.0,0.00041095,120]
[355888082,1741681839927,-500.0,0.00041095,120]
[355888083,1741681839936,-500.0,0.00041095,120]
[355888084,1741681839946,-500.0,0.00041095,120]
[355888085,1741681839956,-639.64644162,0.00041095,120]
[355888086,1741681839965,-1006.26,0.00041095,120]
[355888087,1741681839975,-511.80742577,0.00041095,120]
[355888088,1741681839984,-500.0,0.00041095,120]
[355888089,1741681839994,-500.0,0.00041095,120]
[355888090,1741681840004,-507.50182075,0.00041095,120]
[355888091,1741681840013,-500.0,0.00041095,120]
[355888092,1741681840023,-500.0,0.00041095,120]
[355888093,1741681840032,-500.0,0.00041095,120]
[355888094,1741681840042,-500.0,0.00041095,30]
[355888095,1741681840052,-204.78972193,0.00041095,120]
[355888096,1741681840062,-500.0,0.00041095,120]
[355888097,1741681840071,-523.45970443,0.00041095,120]
[355888098,1741681840082,-728.27,0.00041095,120]
[355888099,1741681840091,-516.33980482,0.00041095,120]
[355888100,1741681840101,-537.51,0.00041095,120]
[355888101,1741681840111,-500.0,0.00041095,120]
[355888102,1741681840122,-520.32239324,0.00041095,120]
[355888103,1741681840138,-500.0,0.00041095,2]
[355888104,1741681840148,-500.0,0.00041095,120]
[355888105,1741681840159,-500.0,0.00041095,120]
[355888107,1741681840169,-915.41,0.00041095,120]
[355888109,1741681840179,-407.71525998,0.00041095,120]
[355888110,1741681840189,-500.0,0.00041095,120]
[355888111,1741681840199,-500.0,0.00041095,120]
[355888112,1741681840209,-500.0,0.00041095,120]
[355888113,1741681840219,-500.0,0.00041095,120]
[355888114,1741681840229,-517.74320305,0.00041095,120]
[355888115,1741681840239,-500.0,0.00041095,120]
[355888116,1741681840250,-500.0,0.00041095,120]
[355888117,1741681840259,-500.0,0.00041095,120]
[355888118,1741681840273,-500.0,0.00041095,120]
[355888119,1741681840283,-500.0,0.00041095,120]
[355888120,1741681840294,-500.0,0.00041095,120]
[355888121,1741681840304,-500.0,0.00041095,120]
[355888122,1741681840314,-500.0,0.00041095,120]
[355888123,1741681840324,-500.0,0.00041095,120]
[355888124,1741681840334,-500.0,0.00041095,120]
[355888125,1741681840344,-993.51,0.00041095,120]
[355888126,1741681840354,-500.0,0.00041095,120]
[355888127,1741681840364,-500.0,0.00041095,120]
[355888128,1741681840374,-500.0,0.00041095,120]
[355888129,1741681840384,-500.0,0.00041095,120]
[355888130,1741681840394,-500.0,0.00041095,120]
[355888131,1741681840404,-510.31545895,0.00041095,120]
[355888132,1741681840413,-500.0,0.00041095,120]
[355888133,1741681840423,-500.0,0.00041095,120]
[355888134,1741681840432,-479.03597165,0.00041095,120]
[355888135,1741681840442,-446.72159878,0.00041095,120]
[355888136,1741681840452,-511.71417536,0.00041095,120]
[355888137,1741681840462,-605.14419699,0.00041095,120]
[355888138,1741681840471,-500.0,0.00041095,120]
[355888139,1741681840481,-535.01994078,0.00041095,120]
[355888140,1741681840491,-500.0,0.00041095,120]
[355888141,1741681840500,-416.66666667,0.00041095,7]
[355888142,1741681840510,-500.0,0.00041095,120]
[355888143,1741681840520,-416.66666667,0.00041095,120]
[355888144,1741681840531,-802.7,0.00041095,120]
[355888145,1741681840540,-500.0,0.00041095,120]
[355888146,1741681840550,-529.7985639,0.00041095,120]
[355888147,1741681840560,-500.0,0.00041095,120]
[355888148,1741681840570,-500.0,0.00041095,120]
[355888149,1741681840581,-500.0,0.00041095,120]
[355888150,1741681840590,-500.0,0.00041095,120]
[355888151,1741681840600,-500.0,0.00041095,120]
[355888152,1741681840610,-527.27952661,0.00041095,120]
[355888153,1741681840620,-500.0,0.00041095,120]
[355888154,1741681840629,-500.0,0.00041095,120]
[355888155,1741681840639,-500.0,0.00041095,120]
[355888156,1741681840648,-408.82221524,0.00041095,120]
[355888157,1741681840658,-529.29825262,0.00041095,120]
[355888158,1741681840667,-522.52348901,0.00041095,120]
[355888159,1741681840677,-523.40841102,0.00041095,120]
[355888160,1741681840687,-509.27336176,0.00041095,120]
[355888161,1741681840696,-500.0,0.00041095,120]
[355888162,1741681840706,-500.0,0.00041095,120]
[355888163,1741681840715,-500.0,0.00041095,120]
[355888164,1741681840724,-550.91881742,0.00041095,120]
[355888165,1741681840734,-1000.0,0.00041095,120]
[355888166,1741681840744,-500.0,0.00041095,120]
[355888167,1741681840754,-509.2297945,0.00041095,120]
[355888168,1741681840764,-500.0,0.00041095,30]
[355888169,1741681840773,-497.62466242,0.00041095,120]
[355888170,1741681840783,-500.0,0.00041095,120]
[355888171,1741681840793,-500.0,0.00041095,120]
[355888172,1741681840803,-500.0,0.00041095,120]
[355888173,1741681840812,-1096.17682289,0.00041095,120]
[355888174,1741681840821,-600.04,0.00041095,120]
[355888175,1741681840831,-524.60920292,0.00041095,120]
[355888176,1741681841004,-282.77246715,0.00041095,120]
[355888177,1741681841025,-322.32203264,0.00041095,120]
[355888178,1741681841034,-505.59321459,0.00041095,120]
[355888179,1741681841044,-500.0,0.00041095,120]
[355888180,1741681841053,-500.0,0.00041095,120]
[355888181,1741681841063,-500.0,0.00041095,120]
[355888182,1741681841072,-500.0,0.00041095,120]
[355888183,1741681841082,-500.0,0.00041095,120]
[355888184,1741681841091,-2988.79,0.00041095,120]
[355888185,1741681841100,-500.0,0.00041095,120]
[355888187,1741681841110,-500.0,0.00041095,120]
[355888188,1741681841122,-500.0,0.00041095,120]
[355888189,1741681841135,-500.0,0.00041095,120]
[355888190,1741681841144,-500.0,0.00041095,120]
[355888191,1741681841153,-509.33835445,0.00041095,120]
[355888192,1741681841163,-528.46744951,0.00041095,30]
[355888193,1741681841175,-504.11783498,0.00041095,120]
[355888195,1741681841184,-228.04116879,0.00041095,120]
[355888197,1741681841193,-500.0,0.00041095,120]
[355888198,1741681841204,-540.34726121,0.00041095,120]
[355888199,1741681841214,-500.0,0.00041095,120]
[355888200,1741681841224,-500.0,0.00041095,120]
[355888201,1741681841234,-500.0,0.00041095,120]
[355888202,1741681841245,-452.14741655,0.00041095,120]
[355888203,1741681841255,-515.9236474,0.00041095,120]
[355888204,1741681841265,-500.0,0.00041095,120]
[355888205,1741681841275,-500.0,0.00041095,120]
[355888206,1741681841286,-500.0,0.00041095,120]
[355888207,1741681841296,-500.0,0.00041095,120]
[355888208,1741681841305,-500.0,0.00041095,2]
[355888209,1741681841315,-500.0,0.00041095,2]
[355888210,1741681841324,-500.0,0.00041095,2]
[355888211,1741681841334,-500.0,0.00041095,2]
[355888212,1741681841343,-500.0,0.00041095,120]
[355888213,1741681841353,-408.11893395,0.00041095,2]
[355888214,1741681841363,-480.91535323,0.00041095,120]
[355888215,1741681841375,-514.49359693,0.00041095,120]
[355888216,1741681841384,-500.0,0.00041095,120]
[355888217,1741681841393,-500.0,0.00041095,120]
[355888218,1741681841402,-500.0,0.00041095,120]
[355888219,1741681841411,-500.0,0.00041095,120]
[355888220,1741681841421,-500.0,0.00041095,120]
[355888221,1741681841430,-500.0,0.00041095,120]
[355888222,1741681841440,-505.95809519,0.00041095,120]
[355888223,1741681841448,-507.94111831,0.00041095,120]
[355888224,1741681841458,-749.91,0.00041095,120]
[355888225,1741681841468,-500.0,0.00041095,120]
[355888226,1741681841477,-500.0,0.00041095,120]
[355888227,1741681841486,-586.6262127,0.00041095,120]
[355888228,1741681841496,-500.0,0.00041095,120]
[355888230,1741681841505,-542.35972909,0.00041095,120]
[355888231,1741681841514,-500.0,0.00041095,120]
[355888232,1741681841524,-500.0,0.00041095,120]
[355888233,1741681841533,-500.0,0.00041095,120]
[355888234,1741681841543,-500.0,0.00041095,120]
[355888235,1741681841552,-858.79,0.00041095,120]
[355888236,1741681841561,-500.0,0.00041095,120]
[355888237,1741681841571,-500.0,0.00041095,120]
[355888238,1741681841580,-500.0,0.00041095,120]
[355888239,1741681841589,-500.0,0.00041095,120]
[355888240,1741681841599,-500.0,0.00041095,120]
[355888241,1741681841607,-531.41358287,0.00041095,120]
[355888242,1741681841618,-516.40824254,0.00041095,120]
[355888243,1741681841628,-507.27986423,0.00041095,120]
[355888244,1741681841637,-500.0,0.00041095,120]
[355888245,1741681841647,-1689.58,0.00041095,120]
[355888246,1741681841656,-500.0,0.00041095,120]
[355888247,1741681841665,-500.0,0.00041095,120]
[355888248,1741681841675,-500.0,0.00041095,120]
[355888249,1741681841684,-500.0,0.00041095,120]
[355888250,1741681841693,-500.0,0.00041095,120]
[355888251,1741681841702,-500.0,0.00041095,120]
[355888252,1741681841711,-500.0,0.00041095,120]
[355888253,1741681841720,-548.03183093,0.00041095,120]
[355888254,1741681841731,-500.0,0.00041095,120]
[355888255,1741681841740,-505.59575618,0.00041095,120]
[355888256,1741681841750,-379.13861288,0.00041095,120]
[355888257,1741681841760,-240.1451973,0.00041095,120]
[355888258,1741681841771,-500.0,0.00041095,120]
[355888259,1741681841780,-500.0,0.00041095,120]
[355888260,1741681841789,-500.0,0.00041095,120]
[355888261,1741681841799,-500.0,0.00041095,120]
[355888262,1741681841808,-500.0,0.00041095,120]
[355888263,1741681841818,-500.0,0.00041095,120]
[355888264,1741681841827,-500.0,0.00041095,120]
[355888265,1741681841837,-500.0,0.00041095,120]
[355888266,1741681841846,-500.0,0.00041095,120]
[355888267,1741681841855,-500.0,0.00041095,14]
[355888268,1741681841866,-500.0,0.00041095,120]
[355888269,1741681841875,-500.0,0.00041095,120]
[355888270,1741681841884,-500.0,0.00041095,120]
[355888271,1741681841893,-527.407123,0.00041095,120]
[355888272,1741681841903,-514.91,0.00041095,120]
[355888273,1741681841912,-503.28847715,0.00041095,120]
[355888274,1741681841921,-500.0,0.00041095,120]
[355888275,1741681841930,-500.0,0.00041095,120]
[355888276,1741681841939,-500.0,0.00041095,120]
[355888277,1741681841948,-500.0,0.00041095,120]
[355888278,1741681841958,-531.97502644,0.00041095,120]
[355888279,1741681841967,-500.0,0.00041095,120]
[355888280,1741681841977,-500.0,0.00041095,120]
[355888281,1741681841987,-500.0,0.00041095,120]
[355888282,1741681841996,-200.0,0.00041095,7]
[355888283,1741681842005,-500.0,0.00041095,120]
[355888284,1741681842015,-1480.96,0.00041095,120]
[355888285,1741681842024,-500.0,0.00041095,2]
[355888286,1741681842034,-1034.53,0.00041095,120]
[355888287,1741681842043,-500.0,0.00041095,120]
[355888288,1741681842053,-511.47,0.00041095,120]
[355888289,1741681842062,-711.06,0.00041095,120]
[355888290,1741681842071,-500.0,0.00041095,120]
[355888291,1741681842080,-515.68810336,0.00041095,120]
[355888292,1741681842090,-508.39418278,0.00041095,120]
[355888293,1741681842099,-500.0,0.00041095,120]
[355888294,1741681842108,-500.0,0.00041095,2]
[355888295,1741681842120,-500.0,0.00041095,120]
[355888296,1741681842131,-506.89958661,0.00041095,120]
[355888297,1741681842140,-500.0,0.00041095,120]
[355888298,1741681842150,-305.20605065,0.00041095,120]
[355888299,1741681842159,-193.80185067,0.00041095,120]
[355888300,1741681842170,-500.0,0.00041095,120]
[355888301,1741681842180,-500.0,0.00041095,2]
[355888302,1741681842190,-4844.08841663,0.00041095,2]
[355888303,1741681842199,-500.0,0.00041095,120]
[355888304,1741681842208,-500.0,0.00041095,120]
[355888305,1741681842218,-522.56242938,0.00041095,120]
[355888306,1741681842228,-192.43713899,0.00041095,120]
[355888307,1741681842237,-500.0,0.00041095,2]
[355888308,1741681842247,-209.28856564,0.00041095,120]
[355888309,1741681842256,-500.0,0.00041095,120]
[355888310,1741681842266,-624.5,0.00041095,120]
[355888311,1741681842276,-500.0,0.00041095,120]
[355888312,1741681842286,-622.84,0.00041095,120]
[355888313,1741681842298,-505.37392727,0.00041095,120]
[355888314,1741681842309,-809.04,0.00041095,2]
[355888315,1741681842320,-500.0,0.00041095,120]
[355888316,1741681842330,-500.0,0.00041095,120]
[355888317,1741681842341,-500.0,0.00041095,120]
[355888318,1741681842353,-523.97743146,0.00041095,120]
[355888319,1741681842367,-500.0,0.00041095,120]
[355888320,1741681842379,-500.0,0.00041095,120]
[355888321,1741681842391,-500.0,0.00041095,120]
[355888322,1741681842403,-500.0,0.00041095,120]
[355888323,1741681842412,-500.0,0.00041095,120]
[355888324,1741681842423,-500.0,0.00041095,120]
[355888325,1741681842433,-500.0,0.00041095,120]
[355888326,1741681842444,-500.0,0.00041095,120]
[355888327,1741681842454,-500.0,0.00041095,120]
[355888328,1741681842464,-500.0,0.00041095,120]
[355888329,1741681842474,-500.0,0.00041095,120]
[355888330,1741681842483,-500.0,0.00041095,120]
[355888331,1741681842493,-500.0,0.00041095,120]
[355888333,1741681842504,-500.0,0.00041095,120]
[355888335,1741681842513,-500.0,0.00041095,120]